fUSD/lending_fUSD_20260503
["ID","MTS","AMOUNT","RATE_DAILY","PERIOD"]
[421488864,1777753891000,-501.89,0.00032986,2]
[421488854,1777753891000,-945.97,0.00032931,2]
[421488894,1777753891000,-2129.76,0.00032986,2]
[421488913,1777753891000,-792.30318829,0.00033041,2]
[421488896,1777753891000,-1479.18,0.00032986,2]
[421488925,1777753891000,-340.76929779,0.00033041,2]
[421488930,1777753891000,-556.42492607,0.00033041,2]
[421488927,1777753891000,-2470.24172467,0.00033041,2]
[421488926,1777753891000,-885.93115412,0.00033041,2]
[421488923,1777753891000,-521.05802475,0.00033041,2]
[421488929,1777753891000,-526.46266412,0.00033041,2]
[421488932,1777753891000,-742.24413647,0.00033041,2]
[421488938,1777753891000,-1318.96465924,0.00033041,2]
[421488935,1777753891000,-1268.41573731,0.00033041,2]
[421488939,1777753891000,-18702.60905277,0.00033041,2]
[421488936,1777753891000,-4574.43377732,0.00033041,2]
[421488934,1777753891000,-1881.37,0.00033041,2]
[421488933,1777753891000,-1724.12582906,0.00033041,2]
[421488937,1777753891000,-1220.83232024,0.00033041,2]
[421488943,1777753891000,-1158.41238275,0.00033041,2]
[421488942,1777753891000,-946.06198513,0.00033041,2]
[421488941,1777753891000,-1195.01573727,0.00033041,2]
[421488946,1777753891000,-1479.28856112,0.00033041,2]
[421488944,1777753891000,-2129.76165666,0.00033041,2]
[421488945,1777753891000,-3095.8973667,0.00033041,2]
[421488947,1777753891000,-226.57079449,0.00033055,2]
[421488948,1777753891000,-1198.4,0.000332,30]
[421488897,1777753891000,-787.8,0.00033,2]
[421488928,1777753891000,-691.36602404,0.00033041,2]
[421488931,1777753891000,-12734.75734796,0.00033041,2]
[421488940,1777753891000,-389.52218023,0.00033041,2]
[421488922,1777753891000,-1220.05324527,0.00033041,2]
[421488924,1777753891000,-757.15488462,0.00033041,2]
[421488902,1777753891000,-787.9,0.00033,2]
[421488899,1777753891000,-647.1003029,0.00033,7]
[421488904,1777753891000,-810.16,0.00033,2]
[421488901,1777753891000,-787.9,0.00033,2]
[421488900,1777753891000,-4050.78,0.00033,2]
[421488905,1777753891000,-162.03,0.00033,2]
[421488895,1777753891000,-3095.72,0.00032986,2]
[421488906,1777753891000,-2103.01,0.00033,2]
[421488908,1777753891000,-2232.13,0.00033,2]
[421488907,1777753891000,-681.26,0.00033,2]
[421488909,1777753891000,-787.91,0.00033,2]
[421488903,1777753891000,-2391.63,0.00033,2]
[421488912,1777753891000,-8899.97,0.00033,14]
[421488910,1777753891000,-1638.11,0.00033,2]
[421488918,1777753891000,-790.28705168,0.00033041,2]
[421488916,1777753891000,-572.13057798,0.00033041,2]
[421488915,1777753891000,-654.72872451,0.00033041,2]
[421488949,1777753891000,-157.0,0.0003322,30]
[421488917,1777753891000,-502.29429129,0.00033041,2]
[421488914,1777753891000,-501.94634985,0.00033041,2]
[421488911,1777753891000,-569.777439,0.00033,14]
[421488921,1777753891000,-576.4677329,0.00033041,2]
[421488920,1777753891000,-525.82480637,0.00033041,2]
[421488919,1777753891000,-965.96274975,0.00033041,2]
[421488977,1777753892000,-171.444,0.00033348,7]
[421488974,1777753892000,-150.0,0.00033348,7]
[421488973,1777753892000,-150.0,0.00033348,7]
[421488968,1777753892000,-150.0,0.00033348,7]
[421488975,1777753892000,-150.0,0.00033348,7]
[421488978,1777753892000,-5000.0,0.000334,2]
[421488979,1777753892000,-1695.27,0.000334,2]
[421488971,1777753892000,-150.0,0.00033348,7]
[421488982,1777753892000,-450.0,0.00033448,2]
[421488980,1777753892000,-166.13,0.000334,7]
[421488983,1777753892000,-600.0,0.00033452,15]
[421488984,1777753892000,-600.0,0.00033452,15]
[421488985,1777753892000,-1397.1549288,0.00033514,2]
[421488986,1777753892000,-192.5421844,0.00033514,2]
[421488987,1777753892000,-10000.0,0.0003356,2]
[421488969,1777753892000,-150.0,0.00033348,7]
[421488989,1777753892000,-501.84,0.00033588,3]
[421488981,1777753892000,-200.0,0.00033443,2]
[421488970,1777753892000,-150.0,0.00033348,7]
[421488957,1777753892000,-159.0,0.00033224,30]
[421488976,1777753892000,-150.0,0.00033348,7]
[421488988,1777753892000,-3385.55620872,0.00033571,2]
[421488950,1777753892000,-168.74110826,0.0003322,30]
[421488952,1777753892000,-153.0,0.0003322,30]
[421488954,1777753892000,-159.0,0.00033224,30]
[421488951,1777753892000,-157.0,0.0003322,30]
[421488953,1777753892000,-266.0,0.00033221,30]
[421488960,1777753892000,-437.219,0.00033234,2]
[421488956,1777753892000,-151.0,0.00033224,30]
[421488972,1777753892000,-150.0,0.00033348,7]
[421488955,1777753892000,-167.0,0.00033224,30]
[421488963,1777753892000,-2499.0,0.00033346,15]
[421488961,1777753892000,-220.86,0.000333,60]
[421488962,1777753892000,-163.0,0.0003331,11]
[421488964,1777753892000,-150.0,0.00033348,7]
[421488959,1777753892000,-398.0,0.00033224,30]
[421488958,1777753892000,-158.0,0.00033224,30]
[421488965,1777753892000,-150.0,0.00033348,7]
[421488967,1777753892000,-150.0,0.00033348,7]
[421488966,1777753892000,-150.0,0.00033348,7]
[421488991,1777753892000,-47411.30154834,0.0003366,2]
[421488995,1777753892000,-787.8,0.000338,2]
[421488993,1777753892000,-201.65,0.00033701,2]
[421489021,1777753892000,-151.0,0.00033958,49]
[421489020,1777753892000,-500.0,0.00033958,49]
[421489016,1777753892000,-1000.0,0.000339,12]
[421489017,1777753892000,-1000.0,0.000339,12]
[421489019,1777753892000,-1199.17986512,0.000339,2]
[421489018,1777753892000,-1000.0,0.000339,12]
[421489022,1777753892000,-163.25816092,0.00033958,49]
[421489024,1777753892000,-500.0,0.00033958,49]
[421489014,1777753892000,-1000.0,0.000339,12]
[421489023,1777753892000,-151.0,0.00033958,49]
[421489026,1777753892000,-151.0,0.00033959,49]
[421489027,1777753892000,-1280.88388878,0.00033959,49]
[421489028,1777753892000,-151.0,0.00033959,49]
[421489032,1777753892000,-500.0,0.00033996,30]
[421489031,1777753892000,-1235.18214925,0.00033996,30]
[421489029,1777753892000,-500.0,0.00033959,49]
[421489030,1777753892000,-285.9707789,0.0003398,2]
[421488992,1777753892000,-36580.88002751,0.000337,2]
[421489025,1777753892000,-500.0,0.00033959,49]
[421489015,1777753892000,-1000.0,0.000339,12]
[421489033,1777753892000,-151.0,0.00033996,30]
[421489013,1777753892000,-1000.0,0.000339,12]
[421489007,1777753892000,-159.6,0.000339,120]
[421488994,1777753892000,-156.91596912,0.00033769,5]
[421488996,1777753892000,-4050.78,0.000338,2]
[421488997,1777753892000,-787.9,0.000338,2]
[421488998,1777753892000,-787.9,0.000338,2]
[421489001,1777753892000,-162.03,0.000338,2]
[421489002,1777753892000,-4800.04,0.000338,7]
[421489004,1777753892000,-352.0,0.00033896,14]
[421488999,1777753892000,-2391.63,0.000338,2]
[421488990,1777753892000,-503.0,0.0003361,9]
[421489003,1777753892000,-150.0,0.00033834,2]
[421489006,1777753892000,-823.85480302,0.00033898,30]
[421489008,1777753892000,-163.0,0.000339,60]
[421489011,1777753892000,-1000.0,0.000339,12]
[421489009,1777753892000,-2000.0,0.000339,12]
[421489000,1777753892000,-810.16,0.000338,2]
[421489005,1777753892000,-151.0,0.00033898,30]
[421489012,1777753892000,-1000.0,0.000339,12]
[421489010,1777753892000,-736.81905583,0.000339,12]
[421489066,1777753893000,-518.5,0.00033998,30]
[421489061,1777753893000,-168.3888056,0.00033997,30]
[421489059,1777753893000,-557.5788265,0.00033997,30]
[421489058,1777753893000,-168.3888056,0.00033997,30]
[421489057,1777753893000,-151.0,0.00033997,31]
[421489055,1777753893000,-151.0,0.00033997,30]
[421489067,1777753893000,-1068.11,0.00033998,30]
[421489065,1777753893000,-500.0,0.00033998,30]
[421489062,1777753893000,-174.61919141,0.00033997,31]
[421489060,1777753893000,-556.83569587,0.00033997,31]
[421489063,1777753893000,-150.51111333,0.00033998,2]
[421489069,1777753893000,-151.0,0.00033998,30]
[421489071,1777753893000,-500.0,0.00033998,31]
[421489068,1777753893000,-4017.00202633,0.00033998,30]
[421489070,1777753893000,-559.19188,0.00033998,31]
[421489079,1777753893000,-151.0,0.00033998,31]
[421489049,1777753893000,-1000.0,0.00033997,30]
[421489073,1777753893000,-1107.63007,0.00033998,31]
[421489064,1777753893000,-539.24,0.00033998,30]
[421489056,1777753893000,-1037.0,0.00033997,30]
[421489039,1777753893000,-1148.61238259,0.00033997,30]
[421489052,1777753893000,-500.0,0.00033997,30]
[421489074,1777753893000,-151.0,0.00033998,31]
[421489034,1777753893000,-151.0,0.00033996,30]
[421489035,1777753893000,-500.0,0.00033996,30]
[421489037,1777753893000,-151.0,0.00033996,30]
[421489042,1777753893000,-343.8234307,0.00033997,30]
[421489036,1777753893000,-1075.369,0.00033996,30]
[421489044,1777753893000,-1191.11104075,0.00033997,31]
[421489045,1777753893000,-500.0,0.00033997,31]
[421489053,1777753893000,-165.99419632,0.00033997,31]
[421489043,1777753893000,-151.0,0.00033997,30]
[421489038,1777753893000,-181.08010149,0.00033996,30]
[421489041,1777753893000,-500.0,0.00033997,30]
[421489046,1777753893000,-151.0,0.00033997,31]
[421489048,1777753893000,-151.0,0.00033997,30]
[421489050,1777753893000,-168.3888056,0.00033997,30]
[421489054,1777753893000,-500.0,0.00033997,31]
[421489051,1777753893000,-151.0,0.00033997,31]
[421489047,1777753893000,-155.25284795,0.00033997,30]
[421489040,1777753893000,-557.5788265,0.00033997,30]
[421489072,1777753893000,-537.6845,0.00033998,31]
[421489116,1777753893000,-153.1175666,0.00033999,31]
[421489075,1777753893000,-152.0,0.00033998,30]
[421489098,1777753893000,-156.587,0.00033998,30]
[421489101,1777753893000,-520.0,0.00033999,31]
[421489102,1777753893000,-200.0,0.00033999,31]
[421489104,1777753893000,-500.0,0.00033999,31]
[421489108,1777753893000,-590.84065914,0.00033999,31]
[421489107,1777753893000,-151.0,0.00033999,31]
[421489105,1777753893000,-500.0,0.00033999,31]
[421489103,1777753893000,-1030.0,0.00033999,31]
[421489096,1777753893000,-260.287,0.00033998,30]
[421489106,1777753893000,-6888.0,0.00033999,31]
[421489109,1777753893000,-222.91660502,0.00033999,31]
[421489112,1777753893000,-1000.0,0.00033999,31]
[421489111,1777753893000,-151.0,0.00033999,31]
[421489117,1777753893000,-855.95695558,0.00033999,31]
[421489115,1777753893000,-2345.0,0.00033999,31]
[421489114,1777753893000,-500.0,0.00033999,31]
[421489077,1777753893000,-151.0,0.00033998,30]
[421489118,1777753893000,-151.0,0.00033999,31]
[421489113,1777753893000,-151.0,0.00033999,31]
[421489093,1777753893000,-162.380719,0.00033998,31]
[421489110,1777753893000,-152.0,0.00033999,31]
[421489097,1777753893000,-269.917619,0.00033998,31]
[421489078,1777753893000,-1000.0,0.00033998,30]
[421489099,1777753893000,-162.380719,0.00033998,31]
[421489082,1777753893000,-1000.0,0.00033998,31]
[421489080,1777753893000,-156.587,0.00033998,30]
[421489076,1777753893000,-152.0,0.00033998,31]
[421489090,1777753893000,-1000.0,0.00033998,30]
[421489089,1777753893000,-151.0,0.00033998,31]
[421489088,1777753893000,-176.29,0.00033998,30]
[421489081,1777753893000,-500.0,0.00033998,30]
[421489083,1777753893000,-162.380719,0.00033998,31]
[421489087,1777753893000,-151.0,0.00033998,30]
[421489084,1777753893000,-500.0,0.00033998,31]
[421489085,1777753893000,-2345.0,0.00033998,30]
[421489091,1777753893000,-219.8678148,0.00033998,31]
[421489092,1777753893000,-156.587,0.00033998,30]
[421489094,1777753893000,-518.5,0.00033998,30]
[421489100,1777753893000,-209.40437684,0.00033999,31]
[421489086,1777753893000,-2217.15897537,0.00033998,31]
[421489095,1777753893000,-537.6845,0.00033998,31]
[421489158,1777753894000,-1259.6699,0.000348,30]
[421489157,1777753894000,-1259.6699,0.000348,10]
[421489154,1777753894000,-4800.04,0.000347,7]
[421489153,1777753894000,-503.0,0.00034689,10]
[421489156,1777753894000,-1500.0,0.00034795,2]
[421489151,1777753894000,-5000.0,0.000345,14]
[421489152,1777753894000,-152.0,0.00034685,6]
[421489160,1777753894000,-1198.4,0.000348,30]
[421489159,1777753894000,-1265.4099,0.000348,30]
[421489149,1777753894000,-1198.4,0.000344,30]
[421489155,1777753894000,-352.0,0.0003472,14]
[421489162,1777753894000,-63819.69884459,0.00034868,15]
[421489171,1777753894000,-4045.54257426,0.00035,30]
[421489163,1777753894000,-168.19,0.000349,30]
[421489164,1777753894000,-168.19,0.000349,30]
[421489161,1777753894000,-150.0,0.00034834,2]
[421489165,1777753894000,-500.1,0.00034917,31]
[421489167,1777753894000,-500.1,0.00034917,31]
[421489166,1777753894000,-500.1,0.00034917,31]
[421489170,1777753894000,-1943.41831299,0.00035,2]
[421489168,1777753894000,-500.1,0.00034917,31]
[421489169,1777753894000,-226.57079449,0.00034928,2]
[421489173,1777753894000,-217.6466557,0.00035,90]
[421489174,1777753894000,-2500.0,0.00035,36]
[421489176,1777753894000,-150.0,0.00035,2]
[421489150,1777753894000,-499.0,0.00034413,15]
[421489172,1777753894000,-6588.17934727,0.00035,60]
[421489144,1777753894000,-215.1,0.00034326,30]
[421489132,1777753894000,-159.0,0.00034182,7]
[421489140,1777753894000,-151.0,0.00034224,30]
[421489184,1777753894000,-268.18185945,0.00035153,60]
[421489125,1777753894000,-151.0,0.00033999,31]
[421489119,1777753894000,-170.0,0.00033999,31]
[421489121,1777753894000,-162.09391854,0.00033999,31]
[421489120,1777753894000,-2219.38501027,0.00033999,31]
[421489123,1777753894000,-500.0,0.00033999,31]
[421489124,1777753894000,-251.0,0.00033999,31]
[421489122,1777753894000,-151.0,0.00033999,31]
[421489126,1777753894000,-233.06815745,0.00034,2]
[421489128,1777753894000,-5208.9849827,0.00034,35]
[421489133,1777753894000,-150.0,0.0003419,2]
[421489127,1777753894000,-7149756.07145464,0.00034,120]
[421489146,1777753894000,-2052.78,0.00034326,30]
[421489129,1777753894000,-280.0,0.00034,2]
[421489135,1777753894000,-157.0,0.0003422,30]
[421489134,1777753894000,-150.0,0.00034204,30]
[421489131,1777753894000,-168.19,0.000341,30]
[421489130,1777753894000,-1198.4,0.00034,30]
[421489138,1777753894000,-266.0,0.00034221,30]
[421489142,1777753894000,-158.0,0.00034224,30]
[421489147,1777753894000,-477.87,0.00034326,30]
[421489148,1777753894000,-495.32,0.00034326,30]
[421489145,1777753894000,-255.31,0.00034326,30]
[421489143,1777753894000,-398.0,0.00034224,30]
[421489139,1777753894000,-159.0,0.00034224,30]
[421489137,1777753894000,-153.0,0.0003422,30]
[421489136,1777753894000,-157.0,0.0003422,30]
[421489175,1777753894000,-1001.0,0.00035,30]
[421489141,1777753894000,-159.0,0.00034224,30]
[421489178,1777753894000,-150.0,0.00035,2]
[421489220,1777753894000,-1444.088354,0.00035616,7]
[421489221,1777753894000,-1444.088354,0.00035616,7]
[421489211,1777753894000,-1444.088354,0.00035616,7]
[421489212,1777753894000,-1444.088354,0.00035616,7]
[421489213,1777753894000,-1444.088354,0.00035616,7]
[421489214,1777753894000,-1444.088354,0.00035616,7]
[421489216,1777753894000,-1444.088354,0.00035616,7]
[421489217,1777753894000,-1444.088354,0.00035616,7]
[421489218,1777753894000,-1444.088354,0.00035616,7]
[421489215,1777753894000,-1444.088354,0.00035616,7]
[421489219,1777753894000,-1444.088354,0.00035616,7]
[421489225,1777753894000,-1444.088354,0.00035616,7]
[421489233,1777753894000,-503.0,0.00035768,11]
[421489222,1777753894000,-1444.088354,0.00035616,7]
[421489224,1777753894000,-1444.088354,0.00035616,7]
[421489228,1777753894000,-1444.088354,0.00035616,7]
[421489226,1777753894000,-1444.088354,0.00035616,7]
[421489229,1777753894000,-1444.088354,0.00035616,7]
[421489231,1777753894000,-150.0,0.00035637,2]
[421489232,1777753894000,-150.0,0.00035638,2]
[421489227,1777753894000,-1444.088354,0.00035616,7]
[421489230,1777753894000,-1444.088361,0.00035616,7]
[421489237,1777753894000,-150.0,0.00035899,2]
[421489235,1777753894000,-150.0,0.00035834,2]
[421489234,1777753894000,-2000.0,0.00035812,120]
[421489236,1777753894000,-200.0,0.00035877,2]
[421489177,1777753894000,-291.79971901,0.00035,30]
[421489205,1777753894000,-170154.34212889,0.0003561,2]
[421489203,1777753894000,-199.5,0.00035562,38]
[421489223,1777753894000,-1444.088354,0.00035616,7]
[421489204,1777753894000,-216.34,0.000356,5]
[421489183,1777753894000,-3190.08206304,0.00035,120]
[421489200,1777753894000,-278.15411702,0.00035545,93]
[421489180,1777753894000,-680.0,0.00035,7]
[421489179,1777753894000,-179.987,0.00035,2]
[421489185,1777753894000,-243.58150908,0.00035175,2]
[421489181,1777753894000,-5000.0,0.00035,75]
[421489182,1777753894000,-8899.97,0.00035,14]
[421489187,1777753894000,-4800.05,0.000352,7]
[421489198,1777753894000,-150.0,0.00035487,2]
[421489186,1777753894000,-292.02440305,0.000352,120]
[421489190,1777753894000,-153.0,0.0003522,30]
[421489188,1777753894000,-157.0,0.0003522,30]
[421489189,1777753894000,-157.0,0.0003522,30]
[421489193,1777753894000,-151.0,0.00035224,30]
[421489197,1777753894000,-1198.4,0.000353,30]
[421489207,1777753894000,-176.726074,0.00035616,120]
[421489209,1777753894000,-275.34,0.00035616,2]
[421489192,1777753894000,-159.0,0.00035224,30]
[421489210,1777753894000,-189.38112211,0.00035616,2]
[421489208,1777753894000,-2000.0,0.00035616,120]
[421489206,1777753894000,-4492.93874286,0.0003561,2]
[421489201,1777753894000,-279.60438904,0.00035559,93]
[421489202,1777753894000,-250.0,0.00035562,38]
[421489191,1777753894000,-266.0,0.00035221,30]
[421489194,1777753894000,-159.0,0.00035224,30]
[421489196,1777753894000,-398.0,0.00035224,30]
[421489195,1777753894000,-158.0,0.00035224,30]
[421489199,1777753894000,-4800.04,0.000355,7]
[421489281,1777753895000,-503.0,0.00036847,12]
[421489279,1777753895000,-226.57079449,0.00036802,2]
[421489282,1777753895000,-395.94606286,0.00036979,2]
[421489278,1777753895000,-1632.66515907,0.000368,2]
[421489274,1777753895000,-213.78495692,0.00036724,120]
[421489271,1777753895000,-10000.0,0.000364,14]
[421489277,1777753895000,-2000.0,0.00036791,120]
[421489272,1777753895000,-150.0,0.00036455,120]
[421489275,1777753895000,-212.9588089,0.00036724,120]
[421489273,1777753895000,-2000.0,0.00036595,120]
[421489280,1777753895000,-150.0,0.00036834,2]
[421489276,1777753895000,-253.43,0.00036767,30]
[421489285,1777753895000,-365.0,0.00037,2]
[421489297,1777753895000,-153.0,0.0003722,30]
[421489287,1777753895000,-1004.42506459,0.00037,2]
[421489284,1777753895000,-2000.0,0.00036986,120]
[421489286,1777753895000,-167.93663871,0.00037,2]
[421489294,1777753895000,-2000.0,0.00037182,120]
[421489293,1777753895000,-233344.3700746,0.000371,2]
[421489292,1777753895000,-1000.0,0.00037,30]
[421489291,1777753895000,-2500.0,0.00037,38]
[421489288,1777753895000,-4500.0,0.00037,2]
[421489290,1777753895000,-38628.0,0.00037,25]
[421489289,1777753895000,-10000.0,0.00037,7]
[421489296,1777753895000,-167.0,0.0003722,30]
[421489295,1777753895000,-196.15609247,0.000372,120]
[421489270,1777753895000,-2000.0,0.00036399,120]
[421489283,1777753895000,-153.64055836,0.00036986,60]
[421489266,1777753895000,-266.0,0.00036221,30]
[421489245,1777753895000,-2500.0,0.00036,37]
[421489263,1777753895000,-2000.0,0.00036204,120]
[421489242,1777753895000,-1001909.0,0.00036,30]
[421489302,1777753895000,-211.30182049,0.000373,60]
[421489241,1777753895000,-1213.0,0.00036,120]
[421489239,1777753895000,-4000.86,0.00036,14]
[421489247,1777753895000,-220.86,0.00036,14]
[421489244,1777753895000,-10955.082456,0.00036,3]
[421489246,1777753895000,-1000.0,0.00036,30]
[421489240,1777753895000,-2140.0,0.00036,60]
[421489243,1777753895000,-10000.0,0.00036,7]
[421489248,1777753895000,-2000.0,0.00036008,120]
[421489249,1777753895000,-500.0,0.00036074,3]
[421489250,1777753895000,-500.0,0.00036074,3]
[421489256,1777753895000,-225.0541,0.000361,120]
[421489267,1777753895000,-159.0,0.00036224,30]
[421489255,1777753895000,-150.0,0.00036093,30]
[421489254,1777753895000,-239.06750787,0.00036075,3]
[421489252,1777753895000,-500.0,0.00036074,3]
[421489253,1777753895000,-239.06750786,0.00036075,3]
[421489258,1777753895000,-626.04,0.000361,60]
[421489257,1777753895000,-626.04,0.000361,120]
[421489262,1777753895000,-220.86,0.000362,15]
[421489264,1777753895000,-157.0,0.0003622,30]
[421489268,1777753895000,-151.0,0.00036224,30]
[421489259,1777753895000,-626.04,0.000361,30]
[421489260,1777753895000,-225.0541,0.000361,120]
[421489261,1777753895000,-159.0,0.00036153,30]
[421489269,1777753895000,-398.0,0.00036224,30]
[421489265,1777753895000,-153.0,0.0003622,30]
[421489251,1777753895000,-500.0,0.00036074,3]
[421489299,1777753895000,-159.0,0.00037224,30]
[421489238,1777753895000,-178.3,0.000359,120]
[421489300,1777753895000,-151.0,0.00037224,30]
[421489335,1777753895000,-2000.0,0.00037965,120]
[421489336,1777753895000,-8034.06,0.00037988,120]
[421489337,1777753895000,-50000.0,0.00038,38]
[421489338,1777753895000,-219.16888703,0.00038,120]
[421489342,1777753895000,-9726.13941348,0.00038,5]
[421489341,1777753895000,-30237.37138931,0.00038,30]
[421489340,1777753895000,-168.54,0.00038,2]
[421489339,1777753895000,-177.0,0.00038,120]
[421489345,1777753895000,-2500.0,0.00038,39]
[421489346,1777753895000,-1000.0,0.00038,30]
[421489344,1777753895000,-3173.0,0.00038,30]
[421489343,1777753895000,-10000.0,0.00038,7]
[421489357,1777753895000,-10485.9209,0.00038155,2]
[421489332,1777753895000,-352.0,0.00037862,14]
[421489348,1777753895000,-161.5281372,0.00038,2]
[421489347,1777753895000,-508.96028247,0.00038,4]
[421489349,1777753895000,-580.218,0.00038019,2]
[421489350,1777753895000,-10485.9209,0.00038019,2]
[421489351,1777753895000,-287.28531915,0.000381,33]
[421489356,1777753895000,-150.0,0.00038146,120]
[421489354,1777753895000,-10570.0,0.000381,120]
[421489359,1777753895000,-150.0,0.00038169,30]
[421489358,1777753895000,-2000.0,0.0003816,120]
[421489304,1777753895000,-347.6132,0.000373,60]
[421489352,1777753895000,-883.44,0.000381,90]
[421489361,1777753895000,-300.0,0.00038207,2]
[421489360,1777753895000,-1040.13525338,0.00038206,30]
[421489362,1777753895000,-1091.76439935,0.00038207,2]
[421489353,1777753895000,-221.69,0.000381,90]
[421489330,1777753895000,-1331.8249,0.000378,120]
[421489355,1777753895000,-159.0,0.00038125,30]
[421489324,1777753895000,-2443.82,0.000378,2]
[421489329,1777753895000,-5257.51,0.000378,2]
[421489303,1777753895000,-184.44168678,0.000373,120]
[421489298,1777753895000,-150.0,0.00037223,120]
[421489306,1777753895000,-257.14589104,0.000373,60]
[421489301,1777753895000,-398.0,0.00037224,30]
[421489308,1777753895000,-2183.8757,0.000373,120]
[421489307,1777753895000,-1392.4399,0.000373,60]
[421489309,1777753895000,-2000.0,0.00037378,120]
[421489311,1777753895000,-157.23345254,0.00037399,5]
[421489321,1777753895000,-168.48,0.00037778,2]
[421489318,1777753895000,-150.0,0.00037694,2]
[421489310,1777753895000,-152.0,0.00037399,7]
[421489312,1777753895000,-193.2899904,0.00037473,2]
[421489313,1777753895000,-2000.0,0.00037573,120]
[421489305,1777753895000,-224.66366104,0.000373,120]
[421489320,1777753895000,-2000.0,0.00037769,120]
[421489322,1777753895000,-196.03,0.00037778,2]
[421489327,1777753895000,-977.53,0.000378,2]
[421489328,1777753895000,-157.04,0.000378,2]
[421489334,1777753895000,-503.0,0.00037925,13]
[421489325,1777753895000,-541.11,0.000378,2]
[421489326,1777753895000,-488.77,0.000378,2]
[421489333,1777753895000,-205.08079624,0.0003788,2]
[421489317,1777753895000,-4396.34614123,0.0003759,2]
[421489314,1777753895000,-400.0,0.0003758,2]
[421489323,1777753895000,-346.32,0.00037778,2]
[421489316,1777753895000,-400.0,0.0003758,2]
[421489331,1777753895000,-150.0,0.00037834,2]
[421489315,1777753895000,-400.0,0.0003758,2]
[421489319,1777753895000,-855.03324464,0.00037753,120]
[421489388,1777753896000,-300.0,0.00038207,2]
[421489391,1777753896000,-602.8595758,0.00038207,2]
[421489397,1777753896000,-724.11272171,0.00038207,2]
[421489392,1777753896000,-300.0,0.00038207,2]
[421489395,1777753896000,-1064.06461868,0.00038207,2]
[421489396,1777753896000,-308.82462178,0.00038207,2]
[421489393,1777753896000,-523.26645347,0.00038207,2]
[421489394,1777753896000,-887.87078311,0.00038207,2]
[421489400,1777753896000,-851.91860123,0.00038207,2]
[421489402,1777753896000,-343.06188374,0.00038207,2]
[421489390,1777753896000,-491.36893762,0.00038207,2]
[421489409,1777753896000,-300.0,0.00038207,2]
[421489407,1777753896000,-433.48412647,0.00038207,2]
[421489410,1777753896000,-300.0,0.00038207,2]
[421489405,1777753896000,-862.10960503,0.00038207,2]
[421489401,1777753896000,-597.23161822,0.00038207,2]
[421489408,1777753896000,-450.68047114,0.00038207,2]
[421489406,1777753896000,-310.06407563,0.00038207,2]
[421489404,1777753896000,-308.76531569,0.00038207,2]
[421489412,1777753896000,-309.0140843,0.00038207,2]
[421489411,1777753896000,-482.79385417,0.00038207,2]
[421489416,1777753896000,-300.0,0.00038207,2]
[421489399,1777753896000,-543.10861452,0.00038207,2]
[421489403,1777753896000,-1144.08909663,0.00038207,2]
[421489398,1777753896000,-300.99573307,0.00038207,2]
[421489375,1777753896000,-1791.69485462,0.00038207,2]
[421489386,1777753896000,-482.79385417,0.00038207,2]
[421489363,1777753896000,-491.36893762,0.00038207,2]
[421489364,1777753896000,-602.8595758,0.00038207,2]
[421489365,1777753896000,-300.0,0.00038207,2]